fUST/lending_fUST_20240103
["ID","MTS","AMOUNT","RATE_DAILY","PERIOD"]
[309988795,1704271832250,-264.211215,0.00035849,2]
[309988797,1704271832259,-150.0,0.00035945,2]
[309988799,1704271832268,-156.12813563,0.00035999,4]
[309988801,1704271832277,-744.212571,0.00036585,2]
[309988803,1704271832286,-207.769501,0.0003682,2]
[309988805,1704271832295,-37.64087542,0.000369,2]
[309988807,1704271832307,-962.35912458,0.000369,2]
[309988809,1704271832317,-17.82255005,0.00036972,2]
[309988811,1704271832329,-157.16926765,0.00036972,2]
[309988812,1704271832338,-2556.56,0.00037329,3]
[309988814,1704271832347,-4704.17,0.00037329,3]
[309988815,1704271832357,-3920.14,0.00037329,3]
[309988817,1704271832366,-95283.10478011,0.00037339,4]
[309988818,1704271832375,-7338.61392796,0.0003735,2]
[309988907,1704271838440,-821.51957195,0.0003735,2]
[309988908,1704271838451,-521.0003647,0.0003735,2]
[309988909,1704271838464,-12631.46113479,0.0003735,2]
[309988910,1704271838474,-2927.6637445,0.00037653,2]
[309988911,1704271838483,-744.212571,0.00037939,2]
[309988912,1704271838493,-250.0,0.00038498,30]
[309988913,1704271838502,-547.30703649,0.00038654,2]
[309988914,1704271838510,-3317.45739519,0.00038654,2]
[309988915,1704271838520,-207.72899264,0.00038654,2]
[309988916,1704271838531,-154.79876161,0.00038899,5]
[309988917,1704271838542,-1514.46332018,0.000389,30]
[309988918,1704271838554,-200.0,0.00039233,2]
[309988919,1704271838564,-744.212571,0.00039292,2]
[309988920,1704271838574,-2400.0,0.000399,30]
[309988921,1704271838585,-154.84515485,0.0004,4]
[309988922,1704271838597,-744.212571,0.00040646,2]
[309988923,1704271838608,-252.96462205,0.00041421,4]
[309988924,1704271838618,-1798.38562756,0.00041998,4]
[309988925,1704271838629,-1000.0,0.00041999,7]
[309988926,1704271838638,-744.212571,0.00042,2]
[309988927,1704271838649,-47992.26698572,0.00042,2]
[309988928,1704271838661,-527.12954456,0.00042,2]
[309988929,1704271839925,-702.30164619,0.00034,4]
[309988930,1704271840078,-14.33268666,0.00034,4]
[309988932,1704271841390,-154.79876161,0.00037652,5]
[309988933,1704271841400,-14593.61731409,0.00042,2]
[309988934,1704271841412,-219.0,0.00042348,30]
[309988935,1704271841421,-323.0,0.00042712,4]
[309988936,1704271841431,-153.9431941,0.00042932,2]
[309988937,1704271841442,-153.0,0.00043334,2]
[309988938,1704271841452,-228.088,0.0004339,2]
[309988939,1704271841462,-154.0222339,0.00043534,2]
[309988940,1704271841472,-153.0,0.00043634,2]
[309988941,1704271841482,-1000.0,0.00043761,14]
[309988942,1704271841492,-155.766846,0.00044071,21]
[309988943,1704271841501,-1591.84283773,0.000449,6]
[309988944,1704271841512,-160.0,0.00045652,3]
[309988945,1704271841522,-2000.0,0.000457,38]
[309988946,1704271841532,-163.63033103,0.000457,14]
[309988947,1704271841542,-2000.0,0.0004571,38]
[309988948,1704271841552,-2935.198178,0.0004572,38]
[309988949,1704271841563,-2000.0,0.00045753,21]
[309988950,1704271841657,-1785.25484515,0.00045753,21]
[309988951,1704271841669,-5100.0,0.00045762,2]
[309988952,1704271841680,-262.23,0.0004589,60]
[309988953,1704271841690,-364.0,0.000459,24]
[309988954,1704271841701,-151.0,0.000459,7]
[309988955,1704271841711,-151.0,0.000459,7]
[309988956,1704271841722,-6385.79270714,0.000459,2]
[309988986,1704271843301,-541.6742,0.000459,2]
[309988987,1704271843728,-986.40403317,0.00034,4]
[309988988,1704271843854,-20.13069455,0.00034,4]
[309989001,1704271846251,-2840.81413619,0.0004589,3]
[309989002,1704271846307,-425.97586381,0.0004589,3]
[309989003,1704271846316,-45432.11726697,0.000459,2]
[309989004,1704271866079,-702.30164619,0.00034,4]
[309989005,1704271866276,-14.33268666,0.00034,4]
[309989006,1704271948898,-326.13451965,0.00033999,4]
[309989007,1704271949083,-6.65580652,0.00033999,4]
[309989008,1704271950151,-154.79876161,0.00034,2]
[309989009,1704271950174,-154.79876161,0.00041416,8]
[309989010,1704271950194,-116.40247678,0.00041417,4]
[309989011,1704272055978,-319.57109413,0.0003,2]
[309989012,1704272056074,-6.52185906,0.0003,2]
[309989013,1704272058957,-4823.00871836,0.00032,30]
[309989014,1704272059111,-98.42874935,0.00032,30]
[309989015,1704272063590,16845.17031574,0.00021,2]
[309989016,1704272063619,4114.90166542,0.00021,2]
[309989017,1704272064737,13007.37858565,0.0003,120]
[309989018,1704272065441,-5000.0,0.0003,30]
[309989019,1704272065564,-5000.0,0.0003,30]
[309989020,1704272065711,-5000.0,0.0003,30]
[309989021,1704272065815,-5000.0,0.0003,30]
[309989022,1704272065948,-5000.0,0.0003,30]
[309989023,1704272066088,-1808.12083217,0.0003,30]
[309989024,1704272077676,-13510.95258321,0.000325,15]
[309989025,1704272077718,-2808.26480597,0.00034896,4]
[309989026,1704272077746,-3076.58950184,0.00034897,4]
[309989027,1704272077772,-26036.19310898,0.00034898,120]
[309989028,1704272531559,-980.0,0.00034,7]
[309989029,1704272531716,-20.0,0.00034,7]
[309989030,1704272589433,-154.79876161,0.00033384,5]
[309989031,1704272589464,-1387.31691402,0.00033384,4]
[309989032,1704272589616,-186.27051009,0.00033384,4]
[309989033,1704272594017,-167.115574,0.00033385,2]
[309989034,1704272594046,-241.65768852,0.00034059,2]
[309989035,1704272594172,-8.34231148,0.00034059,2]
[309989037,1704272745731,-154.79876161,0.00034059,2]
[309989038,1704272745761,-2866.01449438,0.00034077,2]
[309989039,1704272745999,-61.64925012,0.00034077,2]
[309989041,1704272872056,-980.0,0.00034076,7]
[309989042,1704272872366,-20.0,0.00034076,7]
[309989043,1704272900166,-154.79876161,0.00034076,5]
[309989044,1704272900204,-3796.65896451,0.00034077,4]
[309989045,1704272900352,-235.44075602,0.00034077,4]
[309989046,1704272903156,1369.717492,0.00034076,4]
[309989047,1704272952270,-167.115574,0.00033928,2]
[309989048,1704272952300,-148.3604749,0.00034076,2]
[309989049,1704272952486,-6.43828671,0.00034076,2]
[309989050,1704272955550,-10004.62141435,0.00034898,120]
[309989051,1704272966106,-161.26693346,0.00034076,2]
[309989052,1704272966129,-1502.94422172,0.00034285,4]
[309989122,1704273038544,-521.0003647,0.00034284,2]
[309989124,1704273038556,-4392.66303611,0.00034284,2]
[309989126,1704273038566,-70.64320239,0.00034285,4]
[309989128,1704273038575,-351.541868,0.00034286,2]
[309989130,1704273038584,-313.0,0.00034384,2]
[309989132,1704273038593,-13152.4614995,0.00034385,2]
[309989133,1704273038603,-2098.83784078,0.00034898,120]
[309989135,1704273038611,-200.0,0.00035452,2]
[309989137,1704273038622,-158.508221,0.00035616,120]
[309989139,1704273038632,-11532.24564201,0.00036,30]
[309989141,1704273038643,-840.894702,0.00036649,2]
[309989143,1704273038652,-2464.42961244,0.000375,30]
[309989145,1704273038662,-250.0,0.00037822,15]
[309989147,1704273038673,-5425.67637215,0.00038,30]
[309989149,1704273038683,-840.894702,0.00038005,2]
[309989151,1704273038692,-500.0,0.00038356,2]
[309989153,1704273038701,-162.26836183,0.0003841,2]
[309989155,1704273038710,-2850.74539702,0.00038654,2]
[309989157,1704273038719,-840.894702,0.00039361,2]
[309989159,1704273038730,-18224.45823281,0.0004,120]
[309989161,1704273038740,-154.84515485,0.0004,4]
[309989163,1704273038752,-201.75791673,0.0004,2]
[309989165,1704273038762,-529.13163476,0.0004,10]
[309989167,1704273038772,-252.96462205,0.00040498,4]
[309989168,1704273038783,-840.894702,0.00040717,2]
[309989170,1704273038794,-242.06517538,0.000408,2]
[309989173,1704273038806,-1000.0,0.00041286,7]
[309989175,1704273038816,-3292.26,0.00041287,3]
[309989177,1704273038825,-3950.71,0.00041297,3]
[309989178,1704273038835,-3191.40046177,0.00041307,3]
[309989180,1704273038847,-527.12954456,0.00041307,3]
[309989187,1704273038938,-1022.32999367,0.00041307,3]
[309989189,1704273038949,-3929.37487724,0.00041317,2]
[309989194,1704273039039,-974.23467953,0.00041419,2]
[309989195,1704273039050,-2526.40943097,0.00042,30]
[309989212,1704273041567,-154.79876161,0.00037499,5]
[309989213,1704273041577,-1892.03129228,0.00042,30]
[309989223,1704273046443,-0.09313078,0.00042,30]
[309989224,1704273046457,-1776.0938832,0.00042,30]
[309989225,1704273046467,-527.75470622,0.00042,2]
[309989226,1704273665129,345.0,0.000219,2]
[309989227,1704273948205,-156.69710926,0.00034243,4]
[309989228,1704273948227,-1686.51495799,0.00034244,4]
[309989229,1704274027085,-154.76784823,0.00034237,4]
[309989230,1704274027114,-1418.81957588,0.00034237,4]
[309989231,1704274027135,-626.27117964,0.00034238,4]
[309989232,1704274027158,-154.81422293,0.00034239,5]
[309989233,1704274027179,-4060.27405355,0.0003424,4]
[309989234,1704274095234,-5000.0,0.000295,30]
[309989235,1704274095509,-5000.0,0.000295,30]
[309989236,1704274095715,-1490.63246758,0.000295,30]
[309989250,1704274236095,-1000.0,0.00034138,7]
[309989251,1704274236105,-184.76548466,0.00034139,2]
[309989252,1704274236115,-4913.66340081,0.00034228,2]
[309989253,1704274236125,-1309.38626052,0.00034229,2]
[309989255,1704274236135,-605.58209556,0.0003424,4]
[309989257,1704274236145,-709.88003869,0.0003426,4]
[309989258,1704274236156,-10949.34237942,0.00034285,14]
[309989260,1704274236166,-250.0,0.00034791,2]
[309989262,1704274236175,-169.69161421,0.0003485,7]
[309989264,1704274236185,-666.4896426,0.0003495,5]
[309989265,1704274236195,-150.0,0.00035452,2]
[309989268,1704274236205,-158.5082229,0.00035616,120]
[309989270,1704274236228,-163.15847,0.00036026,2]
[309989272,1704274236238,-1018.317957,0.00036123,2]
[309989274,1704274236248,-154.81422293,0.00036938,5]
[309989276,1704274236260,-1035.7977807,0.00036939,2]
[309989278,1704274236271,-464.923239,0.00037075,2]
[309989280,1704274236282,-1018.317957,0.0003746,2]
[309989282,1704274236293,-313.0,0.000375,2]
[309989284,1704274236304,-2464.42961244,0.000375,30]
[309989286,1704274236315,-250.0,0.00037712,15]
[309989288,1704274236325,-6110.179032,0.00037761,2]
[309989290,1704274236336,-669.8790554,0.00038,120]
[309989292,1704274236346,-447.04166818,0.00038419,2]
[309989294,1704274236357,-194.19990956,0.00038419,2]
[309989296,1704274236368,-163.15847,0.00038481,2]
[309989298,1704274236378,-1995.52177791,0.00038654,2]
[309989300,1704274236388,-641.41771433,0.00038668,2]
[309989302,1704274236398,-200.0,0.0003874,2]
[309989304,1704274236408,-1018.317957,0.00038796,2]
[309989306,1704274236418,-150.0,0.00039217,2]
[309989308,1704274236427,-177.7590882,0.00039787,2]
[309989310,1704274236437,-1573.58742411,0.00039999,4]
[309989312,1704274236446,-154.84515485,0.0004,4]
[309989314,1704274236455,-529.13163476,0.0004,10]
[309989316,1704274236465,-201.75791673,0.0004,2]
[309989317,1704274236474,-1018.317957,0.00040133,2]
[309989318,1704274236484,-252.96462205,0.00040498,4]
[309989319,1704274236494,-453.89800057,0.00040498,4]
[309989320,1704274236504,-201.75791673,0.000408,2]
[309989321,1704274236514,-163.15847,0.00040937,2]
[309989322,1704274236524,-1018.317957,0.0004147,2]
[309989323,1704274236535,-201.75791673,0.000416,2]
[309989324,1704274236545,-2883.55,0.0004199,3]
[309989325,1704274236555,-5498.74,0.0004199,3]
[309989326,1704274236566,-4582.29,0.0004199,3]
[309989327,1704274236576,-3818.57,0.0004199,3]
[309989328,1704274236586,-500.0,0.00041999,2]
[309989329,1704274236596,-47991.64182406,0.00042,2]
[309989330,1704274236606,-155.05610134,0.00042,2]
[309989331,1704274236616,-2171.4499975,0.00042,4]
[309989332,1704274236626,-242.10950007,0.000424,5]
[309989333,1704274236636,-16081.71813505,0.000429,120]
[309989334,1704274236646,-201.39531971,0.000432,5]
[309989335,1704274236656,-151.64663113,0.00043551,14]
[309989336,1704274236666,-151.64663113,0.00043551,14]
[309989337,1704274236676,-151.64663113,0.00043551,14]
[309989338,1704274236686,-151.64663113,0.00043551,14]
[309989339,1704274236695,-151.64663113,0.00043551,14]
[309989340,1704274236705,-151.64663113,0.00043551,14]
[309989341,1704274236715,-151.64663113,0.00043551,14]
[309989342,1704274236725,-151.64663113,0.00043551,14]
[309989343,1704274236735,-151.64663113,0.00043551,14]
[309989344,1704274236745,-151.64663113,0.00043551,14]
[309989345,1704274236754,-151.64663113,0.00043551,14]
[309989346,1704274236765,-151.64663113,0.00043551,14]
[309989347,1704274236774,-151.64663113,0.00043551,14]
[309989348,1704274236784,-151.64663113,0.00043551,14]
[309989349,1704274236793,-151.64663113,0.00043551,14]
[309989350,1704274236804,-151.64663113,0.00043551,14]
[309989351,1704274236814,-151.64663113,0.00043551,14]
[309989352,1704274236824,-151.64663113,0.00043551,14]
[309989353,1704274236835,-151.64663113,0.00043551,14]
[309989354,1704274236844,-151.64663113,0.00043551,14]
[309989355,1704274236853,-151.64663113,0.00043551,14]
[309989356,1704274236862,-151.64663113,0.00043551,14]
[309989357,1704274236871,-151.64663113,0.00043551,14]
[309989358,1704274236880,-151.64663113,0.00043551,14]
[309989359,1704274236889,-151.64663113,0.00043551,14]
[309989360,1704274236898,-151.64663113,0.00043551,14]
[309989361,1704274236908,-151.64663138,0.00043551,14]
[309989362,1704274236917,-238.0,0.00043682,2]
[309989363,1704274236926,-550.0,0.00043835,7]
[309989364,1704274236935,-268.62566099,0.0004391,2]
[309989365,1704274236945,-61315.88519292,0.00044,2]
[309989366,1704274236954,-550.0,0.00044109,7]
[309989367,1704274236963,-4422.94371332,0.00044276,30]
[309989368,1704274236972,-567.55673083,0.00044383,7]
[309989369,1704274236981,-3965.85146435,0.00044898,2]
[309989370,1704274236990,-1465.79835902,0.000449,6]
[309989371,1704274236999,-466.0,0.0004497,60]
[309989372,1704274237009,-466.0,0.0004498,60]
[309989373,1704274237018,-466.0,0.0004499,60]
[309989374,1704274237028,-3562.83343699,0.00044998,4]
[309989375,1704274237037,-2081.8359398,0.00044998,2]
[309989376,1704274237047,-1894.66991584,0.00044998,4]
[309989377,1704274237056,-10322.20281928,0.00044998,4]
[309989378,1704274237065,-4029.59321313,0.00044998,4]
[309989379,1704274237074,-2053.78048678,0.00044998,4]
[309989380,1704274237083,-943.79443279,0.00044998,4]
[309989381,1704274237092,-433.14504265,0.00044998,4]
[309989382,1704274237101,-1774.60609081,0.00044998,4]
[309989383,1704274237110,-19622.64196242,0.00044998,4]
[309989384,1704274237119,-223.78208717,0.00044998,4]
[309989385,1704274237128,-221.11556098,0.00044998,4]
[309989386,1704274237138,-468.8416976,0.00044998,4]
[309989387,1704274237147,-5902.939833,0.00044998,4]
[309989388,1704274237157,-481.95184413,0.00044998,2]
[309989389,1704274237166,-578.77452201,0.00044998,2]
[309989390,1704274237176,-2124.92447715,0.00044999,4]
[309989391,1704274237185,-282.15224891,0.00044999,4]
[309989392,1704274237194,-347.2647132,0.00044999,7]
[309989393,1704274237204,-51490.1533,0.00044999,4]
[309989394,1704274237216,-665.87046864,0.00045,3]
[309989395,1704274237226,-306576.60397147,0.00045,120]
[309989396,1704274237235,-51322.38174148,0.00045,30]
[309989397,1704274237244,-2043.634234,0.00045,30]
[309989398,1704274237255,-151.0,0.00045,7]
[309989399,1704274237264,-151.0,0.00045,7]
[309989400,1704274237274,-151.0,0.00045,7]
[309989401,1704274237283,-151.0,0.00045,7]
[309989402,1704274237295,-151.0,0.00045,7]
[309989403,1704274237305,-151.0,0.00045,7]
[309989404,1704274237314,-231.450188,0.00045,7]
[309989405,1704274237324,-10601.35241598,0.00045563,4]
[309989406,1704274237333,-4289.09870687,0.00045704,2]
[309989407,1704274237343,-2000.0,0.00045753,21]
[309989408,1704274237353,-2000.0,0.00045753,21]
[309989409,1704274237363,-2000.0,0.00045753,21]
[309989410,1704274237372,-2000.0,0.00045753,21]
[309989411,1704274237383,-2000.0,0.00045753,21]
[309989412,1704274237392,-2089.25,0.00045753,21]
[309989413,1704274237401,-1414.46320045,0.00045899,4]
[309989414,1704274237410,-64850.66205155,0.00045899,30]
[309989415,1704274237425,-1130.975,0.00045899,30]
[309989416,1704274237437,-36354.16851569,0.00045899,30]
[309989417,1704274237446,-726.73450649,0.000459,4]
[309989418,1704274237456,-155.23016336,0.000459,4]
[309989419,1704274237465,-734.72028822,0.000459,4]
[309989420,1704274237474,-300.0,0.000459,24]
[309989421,1704274237484,-150.0,0.000459,39]
[309989422,1704274237493,-151.0,0.000459,7]
[309989423,1704274237502,-151.0,0.000459,7]
[309989424,1704274237513,-151.0,0.000459,7]
[309989425,1704274237523,-14807.1406161,0.000459,2]
[309989550,1704274244178,-3447.65101869,0.000459,2]
[309989551,1704274244190,-521.0003647,0.000459,2]
[309989552,1704274244201,-213.9753409,0.000459,2]
[309989553,1704274244210,-25609.53932513,0.00045926,2]
[309989554,1704274244219,-151.0,0.00045926,2]
[309989555,1704274244228,-4000.0,0.00045927,20]
[309989556,1704274244237,-189.92291866,0.00045977,2]
[309989557,1704274244246,-466.0,0.00045995,60]
[309989558,1704274244255,-6125.56,0.00045997,74]
[309989559,1704274244265,-7408.0,0.00045999,4]
[309989560,1704274244274,-1507.859588,0.00046,3]
[309989561,1704274244283,-200.105524,0.00046,17]
[309989562,1704274244292,-151.0,0.00046,7]
[309989563,1704274244301,-197.55374,0.00046,7]
[309989564,1704274244310,-151.0,0.00046,7]
[309989565,1704274244319,-466.0,0.00046005,60]
[309989566,1704274244328,-466.0,0.00046007,60]
[309989567,1704274244337,-3182.14,0.00046013,3]
[309989568,1704274244346,-466.0,0.00046015,60]
[309989569,1704274244355,-466.0,0.00046017,60]
[309989570,1704274244365,-18194.69930912,0.0004602,120]
[309989571,1704274244374,-154.87609912,0.00046021,2]
[309989572,1704274244383,-338.82464507,0.00046021,4]
[309989573,1704274244392,-470.86768404,0.00046021,4]
[309989574,1704274244401,-201.92322463,0.00046023,4]
[309989575,1704274244410,-7547.34566091,0.00046023,90]
[309989576,1704274244422,-527.12954456,0.00046023,90]
[309989577,1704274244436,-1093.39872623,0.00046023,90]
[309989578,1704274244448,-81.86987038,0.00046023,90]
[309989579,1704274244457,-1397.6078183,0.00046023,2]
[309989580,1704274244472,-5562.82388154,0.00046023,2]
[309989581,1704274244484,-3194.44957336,0.00046023,2]
[309989582,1704274244922,-2941.59060763,0.00046023,2]
[309989583,1704274244936,-3946.16404326,0.00046023,2]
[309989586,1704274246603,-63151.8556229,0.00046023,2]
[309989590,1704274261657,-1097.71433612,0.000295,7]
[309989591,1704274261830,-22.40233339,0.000295,7]
[309989593,1704274281671,-5000.0,0.000295,7]
[309989594,1704274281860,-4682.95522392,0.000295,7]
[309989601,1704274509164,-1259.00536823,0.000295,2]
[309989602,1704274509255,-25.69398711,0.000295,2]
[309989603,1704274525871,-716.48108783,0.000295,2]
[309989604,1704274526075,-14.62206302,0.000295,2]
[309989607,1704275099953,-154.81422293,0.000295,7]
[309989608,1704275099984,-825.18577707,0.000295,2]
[309989609,1704275100129,-174.81422293,0.000295,2]
[309989610,1704275109822,-1075.7600494,0.000295,7]
[309989611,1704275110013,-21.95428672,0.000295,7]
[309989612,1704275157798,-158.67313063,0.000295,2]
[309989613,1704275233391,156.84948615,0.000295,2]
[309989614,1704275254099,-154.81422293,0.00038674,5]
[309989615,1704275254121,-1000.0,0.00038675,7]
[309989616,1704275254141,-1573.58742411,0.00038676,4]
[309989617,1704275254164,-995.23721856,0.00038677,2]
[309989618,1704275254185,-388.769926,0.00038945,2]
[309989619,1704275254205,-312.96645632,0.00039997,4]
[309989620,1704275254226,-194.9762442,0.00040354,2]
[309989621,1704275254247,-172.95203609,0.00041219,10]
[309989622,1704275254267,-1089.24644892,0.00041319,4]
[309989623,1704275254288,-1360.52948905,0.00041421,2]
[309989624,1704275254309,-174.915562,0.00041878,2]
[309989625,1704275254330,-4072.6374394,0.00041949,2]
[309989689,1704275432070,-154.81422293,0.00037999,5]
[309989690,1704275432079,-1036.08090398,0.00037999,4]
[309989691,1704275432088,-27367.90715539,0.00038,18]
[309989736,1704275438062,-521.0003647,0.00038,18]
[309989737,1704275438074,-4100.72854281,0.00038,18]
[309989738,1704275438085,-24900.0,0.0004139,2]
[309989739,1704275438094,-974.23467953,0.00041422,2]
[309989740,1704275438104,-1000.0,0.00041927,7]
[309989741,1704275438114,-1798.38562756,0.00041928,4]
[309989742,1704275438123,-31943.10096971,0.00041928,4]
[309989743,1704275438132,-13609.74323997,0.00041949,60]
[309989744,1704275438143,-527.12954456,0.00041949,60]
[309989745,1704275438155,-21697.50488081,0.00041949,60]
[309989746,1704275438167,-2443.1194624,0.00041949,60]
[309989747,1704275438179,-4242.30893474,0.00041949,60]
[309989778,1704275442888,-2072.05307784,0.00041949,60]
[309989786,1704275445323,-416.64966704,0.00041949,60]
[309989787,1704275445335,-5289.61722582,0.00041949,60]
[309989788,1704275445364,-11194.28210227,0.00041949,60]
[309989789,1704275445374,-296.9965682,0.00041949,4]
[309989790,1704275445384,-4924.63717045,0.00041949,4]
[309989791,1704275445394,-154.81422293,0.00041949,4]
[309989792,1704275445403,-154.87609912,0.00041949,2]
[309989793,1704275445413,-399.67165441,0.00043722,5]
[309989794,1704275445423,-4000.0,0.000438,20]
[309989795,1704275445432,-231.88140386,0.0004392,2]
[309989796,1704275445442,-8074.47520547,0.00044,90]
[309989797,1704275445451,-150.81901718,0.00044852,2]
[309989798,1704275445461,-5283.27,0.0004499,3]
[309989799,1704275445470,-40796.21194131,0.00045,7]
[309989812,1704275445909,-154.81422293,0.00041422,8]
[309989813,1704275445920,-9528.14100099,0.00045,7]
[309989814,1704275445932,-2789.73724561,0.00045,7]
[309989815,1704275445942,-614.55205849,0.00045,5]
[309989817,1704275663562,3131.31348869,0.00021,2]
[309989818,1704275733934,1553.16389453,0.00021,2]
[309989819,1704275733974,12583.70889,0.00021,2]
[309989820,1704275762630,5210.01915065,0.00021,2]
[309989821,1704275767402,155.14279736,0.00021,2]
[309989822,1704275769938,18831.63477527,0.00021,2]
[309989823,1704275770338,155.22297543,0.00021,2]
[309989824,1704275775020,205.45724491,0.00021,2]
[309989825,1704275776118,533.17266667,0.00021,2]
[309989826,1704275777647,297.6005845,0.00021,2]
[309989827,1704275779422,154.87609912,0.00021,2]
[309989828,1704275784397,284.96428911,0.00021,2]
[309989829,1704275791937,18831.63477527,0.00021,2]
[309989830,1704275792029,533.17266667,0.00021,2]
[309989831,1704275799415,154.87609912,0.00021,2]
[309989832,1704275799640,297.6005845,0.00021,2]
[309989833,1704275802314,154.87609912,0.00021,2]
[309989834,1704275815433,154.87609912,0.00021,2]
[309989835,1704275815645,297.6005845,0.00021,2]
[309989836,1704275815943,18831.63477527,0.00021,2]
[309989837,1704275820328,154.87609912,0.00021,2]
[309989838,1704275828032,533.38069631,0.00021,2]
[309989839,1704275835428,154.87609912,0.00021,2]
[309989840,1704275835648,297.6005845,0.00021,2]
[309989841,1704275835949,3168.00824863,0.00021,2]
[309989842,1704275838325,154.87609912,0.00021,2]
[309989843,1704275850034,533.38069631,0.00021,2]
[309989844,1704275853526,258.83347214,0.00021,2]
[309989845,1704275854333,254.54973642,0.00021,2]
[309989846,1704275855644,322.92054477,0.00021,2]
[309989847,1704275866035,318.52575827,0.00021,2]
[309989848,1704275940454,4412.38587704,0.00021,2]
[309989849,1704275943975,10949.34237942,0.00021,2]
[309989850,1704275950467,154.81422293,0.00021,2]
[309989851,1704275953362,-426.0,0.0003389,2]
[309989852,1704275953458,562.64906392,0.00021,2]
[309989853,1704275962161,2171.4499975,0.00021,2]
[309989854,1704275962447,287.29952278,0.00021,2]
[309989855,1704275970495,169.79334686,0.00021,2]
[309989856,1704276018516,-1309.38626052,0.00033884,2]
[309989857,1704276018539,-1573.58742411,0.00033884,4]
[309989858,1704276018561,-7190.07121738,0.00033885,4]
[309989859,1704276018583,-154.81422293,0.00033886,4]
[309989860,1704276018606,-3135.91335812,0.00033886,4]
[309989861,1704276018630,-154.81422293,0.00033887,4]
[309989862,1704276018654,-154.81422293,0.00033887,5]
[309989863,1704276018677,-1269.02823523,0.00033887,4]
[309989864,1704276018699,-16978.57083585,0.00033887,4]
[309989865,1704276024233,154.81422293,0.00021,2]
[309989866,1704276044260,154.81422293,0.00021,2]
[309989867,1704276060253,195.25684621,0.00021,2]
[309989868,1704276085213,-184.25848968,0.00033125,2]
[309989869,1704276085233,-3076.58950184,0.00033125,4]
[309989870,1704276085254,-163.15847,0.00033126,2]
[309989871,1704276085278,-6534.9223021,0.00033886,4]
[309989872,1704276085298,-2808.26480597,0.00033886,4]
[309989873,1704276085320,-4913.66340081,0.00033886,2]
[309989874,1704276085343,-10971.64251265,0.00033887,4]
[309989875,1704276085460,-2898.69413291,0.00033888,4]
[309989876,1704276085482,-1035.7977807,0.0003389,2]
[309989877,1704276085503,-5.356455,0.0003389,2]
[309989878,1704276085525,-431.356455,0.0003389,2]
[309989879,1704276085546,-431.356455,0.0003389,2]
[309989880,1704276085567,-431.356455,0.0003389,2]
[309989881,1704276085587,-431.356455,0.0003389,2]
[309989882,1704276085609,-184.76548466,0.00034794,2]
[309989883,1704276085630,-2099.43784078,0.00034898,120]
[309989884,1704276085650,-163.15847,0.00035384,2]
[309989885,1704276085671,-150.0,0.00035452,2]
[309989886,1704276085693,-158.5082229,0.00035616,120]
[309989887,1704276085713,-11532.24564201,0.00036,30]
[309989888,1704276085733,-156.0,0.00036989,2]
[309989889,1704276085759,-4411.72,0.00036989,3]
[309989890,1704276085780,-9978.39066799,0.00037,2]
[309989891,1704276425088,-191.547275,0.00034508,7]
[309989918,1704276631984,-154.81422293,0.00034499,5]
[309989919,1704276631994,-1309.38626052,0.00034499,2]
[309989920,1704276632006,-4913.66340081,0.00034499,2]
[309989921,1704276632016,-1369.717492,0.00034499,4]
[309989922,1704276632029,-1573.58742411,0.000345,4]
[309989923,1704276632041,-184.25848968,0.000345,2]
[309989924,1704276632050,-154.81422293,0.000345,4]
[309989925,1704276632060,-921.15631549,0.00034508,4]
[309989926,1704276632069,-154.81422293,0.00034508,4]
[309989927,1704276632080,-161.26693346,0.00034508,2]
[309989928,1704276632090,-4033.54542916,0.00034508,4]
[309989929,1704276632100,-1000.0,0.00034517,7]
[309989931,1704276632110,-270.27665595,0.00034518,4]
[309989933,1704276632120,-175.310495,0.00034571,2]
[309989935,1704276632130,-1352.814893,0.00034768,2]
[309989937,1704276632140,-163.15847,0.00034769,2]
[309989939,1704276632150,-1352.814893,0.00036054,2]